Cogmind - Beta 16 @@@ ROGUE MODE // 2025.12.01 @ 16:25:11 Player: Mozco Result: Destroyed by G-34 Mercenary with Small Laser Performance ------------- Evolutions (0) 0 Regions Visited (2) 400 Robots Destroyed (21) 105 Value Destroyed (457) 457 Prototype IDs (2) 40 Alien Tech Used (0) 0 Bonus (0) 0 TOTAL SCORE: 1002 Bonus ------- None Cogmind --------- Core Integrity 0/250 Matter 263/300 Energy 18/100 System Corruption 9% Temperature Cool (6) Movement Treading (160) Location -10/Mines Parts ------- > --- POWER (1) -------- (None) > --- PROPULSION (2) --- Light Treads > --- UTILITY (2) ------ Medium Storage Unit Hacking Suite > --- WEAPON (2) ------- EM Pulse Gun EM Pulse Gun > --- INVENTORY (10) --- Medium Matter Pod Weapon Shielding EM Pulse Gun EM Pulse Gun Light Assault Rifle Grenade Launcher Datajack Peak State ------------ > --- POWER ------------ Ion Engine > --- PROPULSION ------- Light Treads Light Treads > --- UTILITY ---------- Medium Storage Unit Hacking Suite > --- WEAPON ----------- EM Pulse Gun Assault Rifle > --- INVENTORY -------- Light Treads Medium Matter Pod Weapon Shielding EM Pulse Gun EM Pulse Gun EM Pulse Gun EM Pulse Gun Light Assault Rifle Grenade Launcher Datajack [Rating: 10] Favorites ----------- Power Ion Engine Engine Ion Engine Propulsion Light Treads Treads Light Treads Utility Hacking Suite Storage Small Storage Unit Hackware Hacking Suite Weapon EM Pulse Gun Energy Gun EM Pulse Gun Ballistic Gun Assault Rifle Launcher Grenade Launcher Special Melee Weapon Datajack Build | -11 -10 -10 ------- Run | Yrd Mat Min Slots Evolved . | . . . Power . | . . . Propulsion . | . . . Utility . | . . . Weapon . | . . . Parts Attached 15 | 6 5 4 Power 1 | 1 . . Engine 1 | 1 . . Core . | . . . Reactor . | . . . Propulsion 3 | 2 . 1 Treads 3 | 2 . 1 Leg . | . . . Wheel . | . . . Hover . | . . . Flight . | . . . Utility 3 | 1 1 1 Device . | . . . Storage 2 | 1 . 1 Processor . | . . . Hackware 1 | . 1 . Protection . | . . . Artifact . | . . . Weapon 8 | 2 4 2 Energy Gun 4 | 2 . 2 Energy Cannon . | . . . Ballistic Gun 2 | . 2 . Ballistic Cannon . | . . . Launcher 1 | . 1 . Special Weapon . | . . . Impact Weapon . | . . . Slashing Weapon . | . . . Piercing Weapon . | . . . Special Melee Weapon 1 | . 1 . Unidentified Prototypes . | . . . Corrupted Parts 2 | . 1 1 System Corruption 4 | . 1 3 Parts Lost 4 | . . 4 Power 1 | . . 1 Propulsion 1 | . . 1 Utility . | . . . Weapon 2 | . . 2 Highest Loss Streak 4 | . . 4 To Critical Strikes . | . . . Average Backups 8 | 2 7 9 Power . | . . . Propulsion 1 | 1 2 . Utility . | . . 1 Weapon 4 | . 3 5 Tool/Special . | . . . Unused Backups 10 | . 6 4 Power 1 | . 1 . Propulsion 5 | . 5 . Utility 2 | . . 2 Weapon 2 | . . 2 Tool/Special . | . . . Average Slot Usage (%) 98 | . 99 98 Engine 13 | . 14 12 Treads 27 | . 28 27 Storage 14 | . 14 14 Hackware 13 | . 13 14 Energy Gun 18 | . 22 14 Ballistic Gun 8 | . 2 13 Peak Build Rating 10 | 6 9 10 Average Rating 8 | 4 8 9 On Entrance 5 | . 6 9 Avg Prop Armor Cover (%) . | . . . Naked Turns . | . . . Heaviest Build 19 | 14 15 19 Greatest Support 40 | 40 40 40 Greatest Overweight (x) . | . . . Average Overweight (x) . | . . . Largest Inventory Capacity 10 | 8 8 10 Average Capacity 8 | 6 8 9 Most Carried 10 | 5 8 10 Average Carried 8 | 2 7 9 Final Capacity 10 | 8 8 10 Final Carried 8 | 5 8 7 Class Distribution -------------------- 100% | Mutant Dominant Class ---------------- Mutant | -10/Materials Mutant | -10/Mines Resources | -11 -10 -10 ----------- Run | Yrd Mat Min Matter Collected 453 | 216 168 69 Remotely . | . . . Salvage Created 719 | . 544 175 Parts 43 | . 37 6 Haulers Intercepted 2 | . 2 . Recyclers Shooed . | . . . Parts Field Recycled . | . . . Retrieved Matter . | . . . Parts Self-Destructed . | . . . Prevented . | . . . Parts Restored . | . . . Kills | -11 -10 -10 ------- Run | Yrd Mat Min Combat Hostiles Destroyed 16 | . 12 4 Guns 7 | . 5 2 AOE 7 | . 7 . Classes Destroyed 6 | . 6 . Hauler 2 | . 2 . Recycler 1 | . 1 . Operator 1 | . 1 . Watcher 1 | . 1 . Swarmer 7 | . 6 1 Grunt 9 | . 6 3 Best Kill Streak 4 | . 4 2 Combat Bots Only 3 | . 3 2 Max Kills in Single Turn 3 | . 3 1 Gunslinging . | . . . Exploded 3 | . 3 . Melee . | . . . Uniques/NPCs Destroyed . | . . . Combat | -11 -10 -10 -------- Run | Yrd Mat Min Hostile Shots Fired 95 | . 36 59 Missed 28 | . 9 19 Hits 67 | . 27 40 Projectile 67 | . 27 40 Critical Strikes 2 | . 1 1 Damage Taken 851 | . 301 550 Core 260 | . 105 155 Absorbed by Shields . | . . . Core Remaining (%) 100 | 100 . . Volleys Fired 60 | . 31 29 Largest 2 | . 2 2 Hottest 80 | . 80 80 Shots Fired 102 | . 49 53 Gun 100 | . 47 53 Cannon . | . . . Launcher 2 | . 2 . Special . | . . . Kinetic 32 | . 12 20 Thermal . | . . . Explosive 2 | . 2 . Electromagnetic 68 | . 35 33 Robot Hit Streak 12 | . 11 12 Robot Miss Streak 5 | . 3 5 Penetration Max . | . . . Secondary Targets . | . . . Shots Hit Robots 68 | . 30 38 Core Hits 30 | . 24 6 Critical Kills . | . . . Critical Parts Destroyed . | . . . Critical Strikes . | . . . Melee Attacks . | . . . Impact . | . . . Slashing . | . . . Piercing . | . . . Sneak Attacks . | . . . Combat Hostiles . | . . . Follow-up Attacks . | . . . Damage Inflicted 1116 | . 605 511 Guns 878 | . 372 506 Cannons . | . . . Explosions 232 | . 232 . Melee . | . . . Ramming 6 | . 1 5 Kinetic 195 | . 45 150 Thermal 104 | . 104 . Explosive 128 | . 128 . Electromagnetic 683 | . 327 356 Impact . | . . . Slashing . | . . . Piercing . | . . . Highest Corruption 9 | . 6 9 Average Corruption 4 | . 2 6 Corruption Purged . | . . . Corruption Blocked . | . . . Effects 36 | . 8 28 Message Errors 10 | . 1 9 Matter Fused 5 | . 2 3 Heat Flow Errors 4 | . 1 3 Energy Discharges 3 | . 1 2 Parts Rejected 1 | . . 1 Data Loss (minor) 5 | . . 5 Data Loss (major) 4 | . 1 3 Weapon Failures 4 | . 2 2 Overload Shots . | . . . Overflow Damage . | . . . Projectiles . | . . . Explosions . | . . . Melee . | . . . Knockbacks . | . . . Impact . | . . . Kinetic . | . . . Secondary . | . . . Self-Inflicted Damage . | . . . Shots . | . . . Rammed 2 | . 1 1 Targets Rammed 2 | . 1 1 Kicked . | . . . Crushed . | . . . Highest Temperature 244 | . 213 244 Average Temperature 68 | . 51 80 Received Heat Transfer 435 | . 114 321 Siege Activations . | . . . Martial Activations . | . . . Shielding Activations . | . . . Robots Disrupted . | . . . Combat Hostiles . | . . . Robots Corrupted 2 | . . 2 Combat Hostiles 2 | . . 2 Parts Fried 5 | . 2 3 Impact Corruptions . | . . . Robots Melted . | . . . Combat Hostiles . | . . . Parts Melted . | . . . Heat Transferred 150 | . 150 . Parts Sabotaged . | . . . Parts Stolen . | . . . Parts Stripped . | . . . Power Chain Reactions 1 | . 1 . Alert | -11 -10 -10 ------- Run | Yrd Mat Min Maximum Alert Level . | . . . Low Security (%) 100 | 100 100 100 Level 1 . | . . . Level 2 . | . . . Level 3 . | . . . Level 4 . | . . . Level 5 . | . . . High Security . | . . . Max Security . | . . . Peak Influence 148 | . 148 50 Initial 49 | . . 49 Average 33 | . 63 10 Influence Increases 487 | . 377 110 Destroy 0b10 Robot/C 320 | . 240 80 Destroy 0b10 Robot/NC 25 | . 25 . Destroy Leader 86 | . 56 30 Successful Hack 11 | . 11 . Select Force Hacks 30 | . 30 . Destroy Structure 15 | . 15 . Influence Decreases 483 | . 249 234 Entered New Map 79 | . . 79 Time Decay 386 | . 249 137 Lost Part 18 | . . 18 Squads Dispatched 4 | . 4 . Investigation 2 | . 2 . Extermination . | . . . Reinforcement 2 | . 2 . Assault . | . . . Garrison . | . . . Intercept . | . . . Searches Triggered . | . . . Construction Impeded . | . . . Haulers Reinforced . | . . . Active Scanning Responses . | . . . Cargo Convoy Interrupts . | . . . Stealth | -11 -10 -10 --------- Run | Yrd Mat Min Distress Signals 1 | . . 1 Communications Jammed . | . . . Distress Signals . | . . . Times Spotted 20 | . 15 5 Peak Tracking Total 3 | . 3 2 Tactical Retreats . | . . . Traps | -11 -10 -10 ------- Run | Yrd Mat Min Traps Triggered 4 | . 4 . Indirectly . | . . . Trap Hack Attempts 9 | . 9 . Triggered . | . . . Disarmed . | . . . Reprogrammed 2 | . 2 . Reused . | . . . Traps Extracted . | . . . Installed . | . . . Triggered . | . . . Machines | -11 -10 -10 ---------- Run | Yrd Mat Min Machines Disabled . | . . . Max in Single Turn . | . . . Machines Repaired . | . . . Machines Dismantled . | . . . Machines Sabotaged . | . . . Overloaded Fab Kills . | . . . Hacking | -11 -10 -10 --------- Run | Yrd Mat Min Machines Accessed 5 | . 5 . Terminals 4 | . 4 . Fabricators . | . . . Repair Stations . | . . . Recycling Units 1 | . 1 . Scanalyzers . | . . . Garrison Access . | . . . Total Hacks 18 | . 18 . Successful 11 | . 11 . Failed 7 | . 7 . Catastrophic 1 | . 1 . Database Lockouts . | . . . Manual 17 | . 17 . Terminals 17 | . 17 . Fabricators . | . . . Repair Stations . | . . . Recycling Units 1 | . 1 . Scanalyzers . | . . . Garrison Access . | . . . Terminal Hacks 8 | . 8 . Robot Analysis 6 | . 6 . Prototype ID Bank 1 | . 1 . Locate Traps 1 | . 1 . Fabricator Hacks . | . . . Repair Station Hacks . | . . . Recycling Unit Hacks . | . . . Scanalyzer . | . . . Garrison Access Hacks . | . . . Unauthorized Hacks 3 | . 3 . Terminals 2 | . 2 . Botnet 2 | . 2 . Fabricators . | . . . Repair Stations . | . . . Recycling Units 1 | . 1 . Tunnel 1 | . 1 . Scanalyzers . | . . . Garrison Access . | . . . Data Cores Recovered 1 | . 1 . Used 1 | . 1 . Hacking Detections 4 | . 4 . Full Trace Events 1 | . 1 . Feedback Events . | . . . Feedback Blocked . | . . . Robot Schematics Acquired . | . . . Robots Built . | . . . Authchips . | . . . Time . | . . . Total Robot Build Rating . | . . . Part Schematics Acquired . | . . . Parts Built . | . . . Authchips . | . . . Time . | . . . Total Part Build Rating . | . . . Part Studies Acquired . | . . . Parts Repaired . | . . . Time . | . . . Parts Recycled . | . . . Recycled Matter . | . . . Retrieved Matter . | . . . Retrieved Components . | . . . Parts Scanalyzed . | . . . Part Schematics Acquired . | . . . Parts Damaged . | . . . Bothacking | -11 -10 -10 ------------ Run | Yrd Mat Min Used RIF Installer . | . . . Robots Hacked . | . . . Non-combat . | . . . Combat . | . . . Robot Hacks Applied . | . . . Relay Couplers Released . | . . . Fabnet Peak Effective % . | . . . Robots Rewired . | . . . Allies Hacked . | . . . Hacks Repelled . | . . . Allies | -11 -10 -10 -------- Run | Yrd Mat Min Total Allies . | . . . Largest Group . | . . . Highest-Rated Group . | . . . Highest-Rated Ally . | . . . Total Orders . | . . . Ally Attacks . | . . . Total Damage . | . . . Kills . | . . . Allies Corrupted . | . . . Allies Melted . | . . . Intel | -11 -10 -10 ------- Run | Yrd Mat Min Active Infowar (turns) . | . . . Robot Analysis Total 6 | . 6 . Derelict Logs Recovered 1 | . . 1 Drone Launches . | . . . Drone Recoveries . | . . . Exploration | -11 -10 -10 ------------- Run | Yrd Mat Min Turns Passed 1437 | 77 650 710 Spaces Moved 631 | 43 332 256 Core 4 | 4 . . Treads 627 | 39 332 256 Legs . | . . . Wheels . | . . . Hover . | . . . Flight . | . . . Fastest Speed 50 | 50 160 160 Average Speed 159 | 149 160 160 Slowest Speed 160 | 160 160 160 Overloaded Moves . | . . . Propulsion Burnouts . | . . . Robots Hopped . | . . . Potential Cave-ins . | . . . Cave-ins Triggered . | . . . Exploration Rate (%) 43 | 4 63 62 Regions Visited 2 Branch Regions 1 Pre-discovered Areas 2 | . 1 1 Known Exits Taken . | . . . Unknown Exits Taken 2 | 1 1 . Scrap Searched 1 | . . 1 Spaces Dug 11 | . 11 . Terrain Destroyed 14 | . 14 . Melee . | . . . Projectile . | . . . AOE 14 | . 14 . Terrain Rammed . | . . . Walls Destroyed . | . . . Machines Disabled . | . . . Actions | -11 -10 -10 --------- Run | Yrd Mat Min Total 955 | 53 401 501 Wait 212 | . 4 208 Move 629 | 42 331 256 Hop . | . . . Pick Up 17 | 5 10 2 Fast Attach 7 | 6 1 . Attach 4 | . 1 3 Detach . | . . . Swap 7 | . 6 1 Drop 8 | . 7 1 Fire 60 | . 31 29 Melee . | . . . Ram . | . . . Kick . | . . . Crush 2 | . 1 1 Escape Stasis . | . . . Rewire . | . . . Trap 9 | . 9 . Miscellaneous . | . . . Route ------- -11/Scrapyard -10/Materials (discovered 2 exits: [*Mat] / [*Min]) -10/Mines (discovered 2 exits: [*Mat x2]) History --------- Turn | Location | Event 8 | -11/Scrapyard | Discovered new exit (range 14) 78 | -11/Scrapyard | Entered Materials 305 | -10/Materials | Build established: Mutant 414 | -10/Materials | Discovered new exit (range 14) 479 | -10/Materials | Discovered new exit (range 3) 728 | -10/Materials | Entered Mines 753 | -10/Mines | Assembled infested the area 758 | -10/Mines | Assisted by a Guerilla fighting off Assembled 1088 | -10/Mines | Discovered new exit (range 5) 1190 | -10/Mines | Core integrity fell below 50% 1296 | -10/Mines | Learned location of Mines (-8) 1349 | -10/Mines | Discovered new exit (range 10) 1391 | -10/Mines | Core integrity fell below 20% 1438 | -10/Mines | Lost 4 parts (1p1n2w) 1438 | -10/Mines | Destroyed by G-34 Mercenary with Small Laser Last Messages --------------- 01324_ Acquired 3 matter. 01337_ System corrupted: Substantial component data lost. 01349_ EXIT=FOUND 01364_ QUS#PBE#B:4I,%V H9E%9RVVOM=GP4E L| 01374_ Ion Engine destroyed. 01383_ System corrupted: Heat flow error (+160). 01387_ System corrupted: Assault Rifle jammed. 01394_ Critical hit (Burn: +37). 01397_ Assault Rifle destroyed. 01401_ E &SJD=OKJZW:AE/|LSLKPFR7IJAQ PGQ 01405_ EM Pulse Gun destroyed. 01405_ G-47 Trooper misfires. 01406_ G-47 Trooper system terminally corrupted. 01406_ Imp. Heat Sink fried. 01406_ Lgt. Nuclear Core fried. 01407_ Lgt. Treads destroyed. 01410_ Integrated Corrupted Lgt. Treads (+3). 01417_ :|FS OJ1VC4U|XZ5WTGWHPLHX>BHQ7ATFO1OVVLR 01417_ System corrupted: EM Pulse Gun failed to cycle. 01433_ System corrupted: Lgt. Treads rejected. Map ----- +----------------------------------------------------+ | ??????????????????#%#?# ### ##??? | | ???????????????####!### ## < ##?? | | ???????????????# = #?? | | ???????????????# ####### ### #?? | | ???????????????# #?????## #?## ##? | | ???????????????# #??????# #??# #? | | ???????????????# ######## #??# #? | | ???????????????# #?## ##? | | ???????????????# ############ #?? | | ???????????????######????????## ##?? | | ??????####??????????#####????# #??? | | ?????## ####?????### #????# ##?? | | ????## ##????# #????# #?? | | ##### ###### #?????## #?? | | [ ##?????## ##?? | | % *%= ##?????####??? | | ###### ######## ##??????????? | | ?????#### ##??????# #??????????? | | ????????## #???????# #??????????? | | ?????????# #???????# #??????????? | | ?????????# #???????## ##?????????? | | ?????????# #????????## ##????????? | | ?????????# #?????????# #????????? | | ????????? ?????????# < #????????? | | ????????? ????????## ##????????? | | ????????? ????????# @##?????????? | | ????????? ???????# ##??????????? | | ????????? ??????# ##???????????? | | ????????? ?????# g #????????????? | | ?????????### ?????# ????????????? | | ?????????????????# ????????????? | | ?????????????????# ????????????? | | ?????????????????# ????????????? | | ?????????????????## [ ????????????? | | ??????????????????# % ????????????? | | ??????????????????# ????????????? | | ??????????????????#### ????????????? | | ?????????????????????## ????????????? | | ??????????????????????? ????????????? | | ?????????????????????????????????????? | | ?????????????????????????????????????? | | ?????????????????????????????????????? | | ?????????????????????????????????????? | | ?????????????????????????????????????? | | ?????????????????????????????????????? | | ?????????????????????????????????????? | | ?????????????????????????????????????? | | ?????????????????????????????????????? | | | | | +----------------------------------------------------+ Best States ------------- Heat Dissipation 25 Energy Generation 10 Energy Capacity 250 Matter Stores 300 Matter Capacity 300 Sight Range 16 Terrain Scan Density 10 Evasion (%) 40 Recoil Reduction 2 Offensive Hacking 10 Item Schematics ----------------- None Robot Schematics ------------------ None Fabricated ------------ Nothing Repaired ---------- Nothing Studied --------- None Alien Tech Used ----------------- None Achievements -------------- None Challenges ------------ None Game ------ Seed ReactiveReflexJets Manual? 0 Play Time 00:10:53 Cumulative 365.8 hours Start 2025.12.01 @ 16:16:37 End 2025.12.01 @ 16:25:11 Sessions 1 Manual Loads 0 Difficulty Rogue Special Mode None Game No. 376 Rogue 372 Adventurer 3 Explorer 1 Win Type - Total 3 Types 2/0/1/0/0/0/0/0/0/0 Lore% 84 Gallery% 79 Achievement% 67 Wizard Run 0 Options --------- Layout 0 ASCII 0 Keyboard 0 Movement Mouse Keybinds 0 Fullscreen 2 Font 18/SmallcapsGlow Map View 76x50 Zoom Use 0% Tactical HUD 1 Map Filters NONE Filters NONE Steam 1 RUN: 75c3ef66-f477-4ee7-a40f-939b0e80d4db